bitfinex/quotes_SOLUSD_20241202
["timestamp","ask_amount","ask_price","bid_price","bid_amount"]
[1733165865624,0.90055489,223.75,223.71,4.469]
[1733165868811,6.1242,223.76,223.71,4.469]
[1733165869012,5.75611753,223.76,223.73,4.469]
[1733165870437,16.23,223.78,223.73,4.469]
[1733165871234,16.23,223.78,223.75,4.469]
[1733165874240,0.90055489,223.77,223.73,4.469]
[1733165877047,0.90055489,223.77,223.74,4.469]
[1733165878041,0.90055489,223.77,223.71,8.45044599]
[1733165878042,0.90055489,223.77,223.72,4.469]
[1733165878924,0.90055489,223.77,223.71,4.469]
[1733165880937,0.90055489,223.77,223.73,4.469]
[1733165882129,17.13055489,223.78,223.73,4.469]
[1733165882332,17.13055489,223.78,223.66,4.71998]
[1733165882629,17.13055489,223.78,223.71,4.469]
[1733165883851,17.13055489,223.78,223.73,4.469]
[1733165884055,16.23,223.78,223.73,4.469]
[1733165884438,0.90055489,223.77,223.73,4.469]
[1733165884738,0.90055489,223.77,223.66,0.25098]
[1733165884739,0.90055489,223.77,223.71,4.469]
[1733165885959,0.90055489,223.77,223.72,4.469]
[1733165886257,17.4277,223.76,223.72,4.469]
[1733165886458,0.90055489,223.75,223.72,4.469]
[1733165887051,0.90055489,223.75,223.67,12.91944599]
[1733165887963,10.32511865,223.74,223.66,4.469]
[1733165888162,0.90055489,223.73,223.66,12.91944599]
[1733165888457,15.0323,223.72,223.66,4.469]
[1733165888661,0.90055489,223.71,223.66,12.91944599]
[1733165888830,0.90055489,223.71,223.68,4.469]
[1733165889735,0.90055489,223.71,223.66,12.91944599]
[1733165890032,0.90055489,223.71,223.66,4.469]
[1733165890259,0.90055489,223.71,223.66,12.91944599]
[1733165892281,0.90055489,223.71,223.66,4.469]
[1733165892766,0.90055489,223.71,223.66,12.91944599]
[1733165892936,0.90055489,223.71,223.68,4.469]
[1733165894069,0.90055489,223.71,223.69,4.469]
[1733165895152,0.90055489,223.71,223.66,4.469]
[1733165895354,11.1756,223.7,223.66,4.469]
[1733165895571,0.90055489,223.69,223.66,4.469]
[1733165895948,6.0357,223.68,223.65,4.11]
[1733165896149,0.90055489,223.67,223.65,8.579]
[1733165897555,0.90055489,223.67,223.65,4.11]
[1733165900087,6.0357,223.68,223.66,8.45044599]
[1733165900579,6.0357,223.68,223.65,12.56044599]
[1733165901173,6.0357,223.68,223.66,4.469]
[1733165902697,0.90055489,223.71,223.66,4.469]
[1733165905381,0.90055489,223.71,223.65,4.11]
[1733165905586,0.90055489,223.71,223.66,4.469]
[1733165909088,0.90055489,223.72,223.68,8.45044599]
[1733165909290,0.90055489,223.76,223.67,8.45044599]
[1733165910189,0.90055489,223.76,223.68,4.469]
[1733165910396,20.0,223.74,223.68,4.469]
[1733165910688,0.90055489,223.73,223.68,4.469]
[1733165912261,0.90055489,223.76,223.68,4.469]
[1733165915272,0.90055489,223.76,223.66,12.91944599]
[1733165915585,0.90055489,223.76,223.67,0.12549]
[1733165916166,0.90055489,223.76,223.66,4.469]
[1733165916909,11.1731,223.75,223.66,4.469]
[1733165917201,0.90055489,223.74,223.66,4.469]
[1733165920383,11.1731,223.75,223.66,4.469]
[1733165920697,11.1731,223.75,223.66,12.91944599]
[1733165921298,20.0,223.72,223.66,4.469]
[1733165921496,20.0,223.72,223.66,12.91944599]
[1733165923392,11.1731,223.75,223.66,12.91944599]
[1733165924087,20.0,223.72,223.66,12.91944599]
[1733165925010,20.0,223.72,223.66,4.469]
[1733165926111,11.1731,223.75,223.66,4.469]
[1733165926289,11.1731,223.75,223.66,12.91944599]
[1733165930118,22.5735,223.84,223.73,4.469]
[1733165930988,33.7421,223.84,223.73,4.469]
[1733165931597,20.0,223.81,223.73,4.469]
[1733165933493,20.0,223.81,223.74,4.469]
[1733165935320,20.0,223.81,223.71,0.12549]
[1733165935321,20.0,223.81,223.76,12.91944599]
[1733165935499,20.0,223.81,223.76,4.469]
[1733165936725,11.1673,223.87,223.79,4.469]
[1733165936889,16.3576,223.89,223.83,8.45044599]
[1733165937094,0.06359432,223.9,223.84,8.45044599]
[1733165937808,0.06359432,223.9,223.84,4.469]
[1733165938315,0.06359432,223.9,223.8,0.12549]
[1733165938521,23.776884,223.88,223.76,15.0368]
[1733165938817,23.776884,223.86,223.76,23.48724599]
[1733165939017,23.776884,223.86,223.76,15.0368]
[1733165939192,20.0,223.83,223.72,8.45044599]
[1733165939601,23.776884,223.82,223.72,8.45044599]
[1733165939824,23.776884,223.82,223.73,4.469]
[1733165941427,23.776884,223.82,223.74,4.469]
[1733165941828,23.776884,223.82,223.74,8.45044599]
[1733165942215,23.776884,223.82,223.73,8.45044599]
[1733165942536,23.776884,223.82,223.74,12.91944599]
[1733165942834,23.776884,223.82,223.74,4.469]
[1733165943062,31.1692,223.83,223.74,4.469]
[1733165943335,23.776884,223.85,223.76,8.45044599]
[1733165943538,23.776884,223.85,223.76,4.469]
[1733165945935,23.776884,223.85,223.77,4.469]
[1733165946145,26.8771,223.86,223.77,4.469]
[1733165946322,26.8771,223.86,223.77,8.57593599]
[1733165946638,15.7094,223.86,223.77,8.57593599]
[1733165946937,20.0,223.86,223.77,8.57593599]
[1733165947247,20.0,223.86,223.79,0.12549]
[1733165949634,11.1661,223.9,223.81,0.12549]
[1733165949838,20.0,223.87,223.81,8.45044599]
[1733165950137,16.5885,223.91,223.83,8.45044599]
[1733165950439,16.5885,223.91,223.82,0.12549]
[1733165950440,16.5885,223.91,223.84,8.45044599]
[1733165950736,17.4471,223.94,223.8,0.25098]
[1733165950737,11.1638,223.94,223.85,8.57593599]
[1733165951537,11.1622,223.97,223.85,8.57593599]
[1733165951731,23.776884,223.96,223.85,0.12549]
[1733165952146,20.0,223.93,223.85,0.12549]
[1733165956326,20.0,223.93,223.85,4.59449]
[1733165956821,20.0,223.93,223.85,13.04493599]
[1733165957131,11.1622,223.97,223.9,8.57593599]
[1733165957738,11.1622,223.97,223.9,0.12549]
[1733165958083,11.1622,223.97,223.9,4.59449]
[1733165958949,11.1622,223.97,223.9,0.12549]
[1733165960131,11.1622,223.97,223.89,0.12549]
[1733165960546,11.1622,223.97,223.87,0.12549]
[1733165961633,11.1622,223.97,223.87,8.57593599]
[1733165961832,15.9389,223.99,223.9,0.12549]
[1733165962648,15.9389,223.99,223.9,4.59449]
[1733165963535,15.9389,223.99,223.91,0.12549]
[1733165964350,23.776884,223.94,223.84,6.0681]
[1733165964549,20.0,223.95,223.85,8.57593599]
[1733165964858,20.0,223.95,223.87,0.12549]
[1733165965531,20.0,223.95,223.88,0.12549]
[1733165966849,20.0,223.95,223.84,0.12549]
[1733165967262,20.0,223.96,223.84,0.12549]
[1733165967559,43.776884,223.95,223.84,0.12549]
[1733165968241,43.776884,223.95,223.83,4.469]
[1733165968658,43.776884,223.95,223.84,0.12549]
[1733165968837,11.1637,223.94,223.81,4.469]
[1733165969037,23.776884,223.93,223.81,4.469]
[1733165969542,23.776884,223.93,223.82,0.12549]
[1733165969955,23.776884,223.91,223.82,0.25098]
[1733165970952,23.776884,223.91,223.82,0.12549]
[1733165971138,23.776884,223.91,223.81,4.59449]
[1733165971333,23.776884,223.91,223.82,0.12549]
[1733165971841,23.776884,223.93,223.82,0.12549]
[1733165972159,20.0,223.9,223.82,0.12549]
[1733165973840,20.0,223.9,223.8,2.86321725]
[1733165973841,11.1661,223.89,223.8,2.86321725]
[1733165974153,23.776884,223.84,223.74,14.67684599]
[1733165974351,23.776884,223.84,223.75,8.45044599]
[1733165974565,23.776884,223.84,223.76,0.12549]
[1733165974860,23.776884,223.84,223.75,8.45044599]
[1733165975048,23.776884,223.84,223.77,0.12549]
[1733165976764,20.0,223.85,223.77,8.57593599]
[1733165977150,20.0,223.85,223.77,0.12549]
[1733165977448,11.1686,223.84,223.77,0.12549]
[1733165977646,11.1686,223.84,223.75,8.70142599]
[1733165977864,11.1686,223.84,223.77,0.12549]
[1733165980063,11.1686,223.84,223.76,0.12549]
[1733165980945,11.1686,223.84,223.77,4.469]
[1733165981151,11.1686,223.84,223.78,0.12549]
[1733165981948,11.1686,223.84,205.0,35.86452667]
[1733165981949,23.776884,223.83,223.69,6.5347]
[1733165982249,23.776884,223.83,223.74,0.12549]
[1733165983155,23.776884,223.83,223.74,4.59449]
[1733165984265,23.776884,223.83,223.74,13.04493599]
[1733165984443,23.776884,223.83,223.74,4.59449]
[1733165987464,23.776884,223.84,223.74,4.59449]
[1733165987661,11.1696,223.82,223.74,4.469]
[1733165987842,11.1696,223.82,223.75,0.12549]
[1733165989769,23.776884,223.81,223.7,4.469]
[1733165989961,23.776884,223.81,223.71,0.12549]
[1733165990473,20.0,223.78,223.7,4.469]
[1733165991374,20.0,223.78,223.71,0.12549]
[1733165991664,23.776884,223.77,223.71,4.469]
[1733165992076,23.776884,223.77,223.72,0.12549]
[1733165992747,23.776884,223.77,223.71,4.59449]
[1733165995254,11.1726,223.76,223.71,4.59449]
[1733165995671,11.1726,223.76,223.71,0.12549]
[1733165996061,20.0,223.78,223.71,0.12549]
[1733165997453,37.9486,223.83,223.71,0.12549]
[1733165997454,26.7799,223.83,223.71,8.57593599]
[1733165997869,26.7799,223.83,223.71,0.12549]
[1733165998468,26.7799,223.83,223.71,4.59449]
[1733165999176,23.776884,223.82,223.71,4.59449]
[1733166000384,11.1701,223.81,223.71,4.59449]
[1733166000676,11.1701,223.81,223.7,4.11]
[1733166000677,20.0,223.77,223.7,4.11]
[1733166001063,20.0,223.77,223.71,0.12549]
[1733166001471,23.776884,223.77,223.71,4.59449]
[1733166001981,20.0,223.78,223.71,0.12549]
[1733166002486,11.1701,223.81,223.71,0.12549]
[1733166002662,11.1701,223.81,223.71,4.59449]
[1733166003280,22.3376,223.84,223.72,0.12549]
[1733166003462,11.1687,223.84,223.73,4.59449]
[1733166004563,57.402274,223.88,223.73,4.59449]
[1733166005474,23.776884,223.84,223.73,4.59449]
[1733166005856,34.945884,223.84,223.73,4.59449]
[1733166008285,20.0,223.81,223.73,4.59449]
[1733166008484,23.776884,223.8,223.73,0.12549]
[1733166008803,23.776884,223.8,223.71,4.469]
[1733166009280,23.776884,223.8,223.72,0.12549]
[1733166011099,11.1711,223.79,223.72,0.12549]
[1733166014095,11.1711,223.79,223.71,4.469]
[1733166014289,20.0,223.76,223.73,4.469]
[1733166015197,20.0,223.77,223.73,4.469]
[1733166015386,20.0,223.76,223.74,4.469]
[1733166015993,20.0,223.76,223.7,4.11]
[1733166016174,20.0,223.76,223.71,4.469]
[1733166016870,11.1731,223.75,223.71,4.469]
[1733166020293,15.2404,223.86,223.74,8.57593599]
[1733166020599,15.2404,223.86,223.74,4.59449]
[1733166020997,11.1702,223.81,223.73,0.12549]
[1733166021205,15.2404,223.86,223.73,0.12549]
[1733166021400,20.0,223.81,223.73,0.12549]
[1733166021701,20.0,223.81,223.73,4.59449]
[1733166022499,20.0,223.81,223.72,0.12549]
[1733166022876,20.0,223.81,223.74,0.12549]
[1733166023772,20.0,223.81,223.76,0.12549]
[1733166024884,20.0,223.81,223.74,0.12549]
[1733166025570,20.0,223.83,223.74,0.12549]
[1733166025993,20.0,223.82,223.73,0.12549]
[1733166026374,20.0,223.82,223.72,0.12549]
[1733166026771,11.1701,223.81,223.72,0.12549]
[1733166027380,11.1701,223.81,223.72,0.25098]
[1733166028309,11.1701,223.81,223.74,0.12549]
[1733166028606,11.1701,223.81,223.74,0.25098]
[1733166029069,11.1701,223.81,223.74,0.12549]
[1733166029410,11.1701,223.81,223.74,4.469]
[1733166029885,11.1701,223.81,223.71,4.469]
[1733166030593,11.1718,223.78,223.71,4.469]
[1733166032287,20.0,223.82,223.71,4.469]
[1733166032288,0.12549,223.81,223.71,4.469]
[1733166032599,20.0,223.78,223.72,0.12549]
[1733166034013,20.0,223.77,223.71,4.469]
[1733166034605,20.0,223.75,223.71,4.469]
[1733166037206,20.0,223.75,223.7,4.11]
[1733166037408,20.0,223.75,223.71,4.469]
[1733166038417,20.0,223.75,223.7,4.11]
[1733166038629,19.5,223.75,223.7,8.579]
[1733166039615,0.12549,223.79,223.7,4.11]
[1733166039805,0.12549,223.77,223.7,4.11]
[1733166040800,20.0,223.75,223.71,0.12549]
[1733166041009,20.0,223.76,223.71,0.12549]
[1733166041524,11.1711,223.79,223.71,0.12549]
[1733166042027,11.29459,223.83,223.71,4.59449]
[1733166042537,11.29459,223.83,223.73,4.469]
[1733166042700,11.1691,223.83,223.73,0.12549]
[1733166043201,11.1691,223.83,223.73,4.59449]
[1733166044016,20.0,223.8,223.73,4.59449]
[1733166044815,20.0,223.8,223.74,8.45044599]
[1733166045019,22.3363,223.85,223.75,8.57593599]
[1733166045218,11.1666,223.88,223.75,8.57593599]
[1733166045519,11.1666,223.88,223.77,0.12549]
[1733166045709,0.12549,223.87,223.77,0.12549]
[1733166047024,20.0,223.85,223.76,4.59449]
[1733166047194,31.1685,223.85,223.76,4.59449]
[1733166047399,31.1685,223.85,223.76,0.12549]
[1733166049803,31.1685,223.85,223.75,4.469]
[1733166049804,0.12549,223.84,223.75,4.469]
[1733166052016,0.12549,223.84,223.74,4.59449]
[1733166052213,0.12549,223.84,223.74,13.04493599]
[1733166052715,20.0,223.85,223.76,13.04493599]
[1733166052905,20.0,223.85,223.78,4.59449]
[1733166058232,0.12549,223.84,223.77,15.328]
[1733166059343,11.1691,223.83,223.77,19.797]
[1733166059637,0.12549,223.82,223.72,16.5881]
[1733166060131,0.12549,223.82,223.73,0.12549]
[1733166060434,0.12549,223.82,223.73,4.59449]
[1733166061413,11.1701,223.81,223.73,4.59449]
[1733166064336,0.12549,223.84,223.73,0.12549]
[1733166064556,0.12549,223.79,223.73,4.59449]
[1733166065415,11.29669,223.79,223.73,4.59449]
[1733166065736,11.29669,223.79,223.71,4.469]
[1733166066737,0.12549,223.75,223.7,4.11]
[1733166067536,0.12549,223.75,223.7,8.579]
[1733166068912,0.12549,223.75,223.7,4.11]
[1733166068913,0.12549,223.73,223.7,4.11]
[1733166069943,23.902374,223.73,223.7,4.11]
[1733166070529,43.902374,223.71,223.7,4.11]
[1733166070929,55.077474,223.71,223.7,4.11]
[1733166071117,55.077474,223.71,223.7,1.7163]
[1733166071320,23.902374,223.7,223.59,8.45044599]
[1733166071656,0.12549,223.62,223.56,16.3136]
[1733166071821,0.12549,223.62,223.56,24.76404599]
[1733166072146,0.12549,223.62,223.57,4.469]
[1733166072346,0.12549,223.62,223.56,4.469]
[1733166072550,20.0,223.63,223.58,4.469]
[1733166072742,23.776884,223.67,223.6,8.45044599]
[1733166073038,0.12549,223.66,223.61,12.91944599]
[1733166073245,0.12549,223.66,223.6,0.12549]
[1733166073923,0.08973609,223.61,223.6,8.45044599]
[1733166074121,0.08973609,223.61,223.6,8.57593599]
[1733166074318,0.08973609,223.61,223.6,13.04493599]
[1733166074532,0.08973609,223.61,223.6,8.57593599]
[1733166075018,0.08973609,223.61,223.6,13.04493599]
[1733166077922,0.08973609,223.61,223.55,5.0]
[1733166078123,0.08973609,223.61,223.58,8.45044599]
[1733166079133,0.08973609,223.61,223.58,0.12549]
[1733166079319,0.08973609,223.61,223.56,0.12549]
[1733166079320,0.08973609,223.61,223.56,8.45044599]
[1733166079933,0.08973609,223.61,223.57,12.91944599]
[1733166080746,0.08973609,223.61,223.58,0.12549]
[1733166080935,0.08973609,223.61,223.6,8.45044599]
[1733166081327,0.08973609,223.61,223.56,0.12549]
[1733166081524,0.08973609,223.61,223.59,8.45044599]
[1733166082551,0.08973609,223.61,223.6,4.469]
[1733166083233,0.08973609,223.61,223.56,4.59449]
[1733166083427,0.08973609,223.61,223.59,8.45044599]
[1733166083628,0.08973609,223.61,223.55,5.0]
[1733166083835,0.08973609,223.61,223.56,8.45044599]
[1733166084353,0.08973609,223.61,223.57,4.469]
[1733166084526,0.08973609,223.61,223.55,13.45044599]
[1733166084527,0.08973609,223.61,223.58,4.469]
[1733166085450,0.08973609,223.61,223.57,4.469]
[1733166087151,0.08973609,223.61,223.58,4.469]
[1733166088153,0.08973609,223.61,223.57,4.469]
[1733166090456,0.08973609,223.61,223.56,4.469]
[1733166090662,0.08973609,223.61,223.56,12.91944599]
[1733166091225,0.08973609,223.61,223.6,4.469]
[1733166093332,0.09462399,223.65,223.6,4.469]
[1733166093333,20.0,223.66,223.6,4.469]
[1733166093527,20.0,223.66,223.57,0.12549]
[1733166093765,20.0,223.66,223.59,4.469]
[1733166093937,0.08510772,223.61,223.59,4.469]
[1733166096632,0.08510772,223.61,223.58,4.469]
[1733166097872,11.1806,223.6,223.56,4.469]
[1733166099847,0.12549,223.59,223.56,4.469]
[1733166100167,0.08510772,223.61,223.56,4.469]
[1733166100168,39.665874,223.57,223.56,4.469]
[1733166101158,39.665874,223.57,223.41,0.5467784]
[1733166101159,0.12549,223.55,223.41,0.5467784]
[1733166101360,0.12549,223.5,223.41,0.5467784]
[1733166101744,20.0,223.51,223.41,8.99722439]
[1733166101951,0.12549,223.52,223.42,0.12549]
[1733166102159,0.12549,223.5,223.41,0.5467784]
[1733166102336,20.12549,223.48,223.41,0.5467784]
[1733166103254,15.3898,223.47,223.41,0.5467784]
[1733166104247,0.12549,223.44,223.41,0.5467784]
[1733166105157,20.0,223.42,223.41,0.5467784]
[1733166105475,44.027864,223.42,223.41,7.84e-05]
[1733166107070,20.0,223.42,223.41,7.84e-05]
[1733166108053,20.12549,223.42,223.41,7.84e-05]
[1733166108680,49.027864,223.42,223.41,7.84e-05]
[1733166109358,44.027864,223.42,223.41,7.84e-05]
[1733166109559,43.902374,223.42,223.41,7.84e-05]
[1733166109860,20.12549,223.42,223.41,7.84e-05]
[1733166110379,43.902374,223.42,223.41,7.84e-05]
[1733166110561,44.027864,223.42,223.41,7.84e-05]
[1733166111069,43.902374,223.42,223.41,7.84e-05]
[1733166113969,43.98575021,223.42,223.41,7.84e-05]
[1733166115997,44.11124021,223.42,223.41,7.84e-05]
[1733166119189,44.23673021,223.42,223.41,7.84e-05]
[1733166119404,55.42633021,223.42,223.41,7.84e-05]
[1733166119690,55.42633021,223.42,223.29,4.469]
[1733166119691,0.12549,223.37,223.29,4.469]
[1733166119886,0.12549,223.37,223.26,13.24162143]
[1733166119887,0.12549,223.33,223.3,4.469]
[1733166120469,0.12549,223.35,223.3,4.469]
[1733166120976,20.0,223.38,223.29,4.469]
[1733166121177,0.12549,223.33,223.29,4.469]
[1733166121379,11.31979,223.33,223.29,4.469]
[1733166121994,11.31979,223.33,223.27,4.469]
[1733166122192,11.31979,223.33,223.27,17.71062143]
[1733166122704,20.0,223.34,223.29,17.71062143]
[1733166122904,20.0,223.34,223.31,17.71062143]
[1733166123079,20.0,223.34,223.31,4.469]
[1733166124997,0.12549,223.34,223.3,4.469]
[1733166125493,20.0,223.32,223.27,4.469]
[1733166125705,20.0,223.32,223.27,17.71062143]
[1733166126074,20.0,223.32,223.28,17.71062143]
[1733166126474,0.12549,223.33,223.28,4.469]
[1733166126676,11.32009,223.33,223.28,4.469]
[1733166127303,20.0,223.3,223.27,4.469]
[1733166127801,0.12549,223.29,223.27,4.469]
[1733166128380,15.2617,223.31,223.19,0.5233892]
[1733166128381,0.12549,223.27,223.19,0.5233892]
[1733166128593,0.12549,223.25,223.19,4.9923892]
[1733166129202,0.12549,223.22,223.19,4.9923892]
[1733166129385,44.027864,223.21,223.19,0.5233892]
[1733166130487,35.103074,223.2,223.19,0.5233892]
[1733166131897,11.32619,223.2,223.19,0.5233892]
[1733166132103,11.2007,223.2,223.19,0.5233892]
[1733166132273,20.0,223.23,223.19,0.5233892]
[1733166132477,11.1989,223.24,223.19,13.79107135]
[1733166132681,0.12549,223.29,223.19,13.79107135]
[1733166132901,6.3018,223.3,223.21,13.26768215]
[1733166133103,6.3018,223.3,223.22,13.26768215]
[1733166133403,0.12549,223.29,223.21,13.26768215]
[1733166133905,0.08176382,223.23,223.22,4.482]
[1733166135111,0.08176382,223.23,223.21,4.482]
[1733166135284,0.08176382,223.23,223.19,0.5233892]
[1733166135599,20.0,223.22,223.19,0.5233892]
[1733166136002,11.1997,223.22,223.19,0.5233892]
[1733166136205,20.0,223.2,223.19,0.5233892]
[1733166136383,0.08176382,223.23,223.19,0.5233892]
[1733166136587,20.08176382,223.23,223.19,0.5233892]
[1733166138078,0.08176382,223.23,223.19,0.5233892]
[1733166140706,20.0,223.22,223.19,0.5233892]
[1733166141008,20.0,223.2,223.19,0.5233892]
[1733166144715,0.08176382,223.23,223.19,13.79107135]
[1733166145112,0.08176382,223.23,223.19,0.5233892]
[1733166145313,11.28136382,223.23,223.19,0.5233892]
[1733166146419,23.902374,223.2,223.19,8.92e-05]
[1733166147124,15.2613,223.21,223.19,8.92e-05]
[1733166147798,33.67976382,223.23,223.19,8.92e-05]
[1733166148019,20.0,223.2,223.19,8.92e-05]
[1733166148242,11.28136382,223.23,223.19,8.92e-05]
[1733166150402,20.12549,223.2,223.19,8.92e-05]
[1733166151711,31.32619,223.2,223.19,8.92e-05]
[1733166151924,0.08176382,223.23,223.19,8.92e-05]
[1733166152126,11.28096382,223.23,223.19,8.92e-05]
[1733166153440,11.1992,223.23,223.19,8.92e-05]
[1733166153932,0.0846377,223.2,223.19,8.92e-05]
[1733166156623,11.2853377,223.2,223.19,8.92e-05]
[1733166156933,35.1877117,223.2,223.19,8.92e-05]
[1733166158034,11.2853377,223.2,223.19,8.92e-05]
[1733166161642,10.70609525,223.2,223.19,8.92e-05]
[1733166164845,34.60846925,223.2,223.19,8.92e-05]
[1733166165663,10.70609525,223.2,223.19,8.92e-05]
[1733166172720,20.0,223.2,223.19,8.92e-05]
[1733166173951,20.09306342,223.2,223.19,8.92e-05]
[1733166174951,0.09306342,223.2,223.19,8.92e-05]
[1733166175249,0.01006941,223.2,223.19,8.92e-05]
[1733166177729,0.01006941,223.2,223.19,17.74977135]
[1733166178634,0.01006941,223.2,223.19,17.87526135]
[1733166180232,0.09740531,223.24,223.19,17.87526135]
[1733166180233,2.88848153,223.38,223.27,136.88530444]
[1733166180431,15.1492,223.42,223.27,24.85576215]
[1733166180648,11.1905,223.41,223.27,24.98125215]
[1733166180953,1e-08,223.29,223.28,0.25098]
[1733166181156,1e-08,223.29,223.28,46.90303615]
[1733166181462,15.2275,223.47,223.33,0.12549]
[1733166181661,15.2275,223.47,223.38,4.482]
[1733166181832,11.1885,223.45,223.38,4.482]
[1733166182537,20.0,223.42,223.38,4.482]
[1733166183859,20.0,223.42,223.39,4.482]
[1733166184733,15.2275,223.47,223.41,17.74968215]
[1733166184932,11.1865,223.49,223.43,17.74968215]
[1733166185254,15.8555,223.52,223.45,17.74968215]
[1733166185631,11.1845,223.53,223.47,4.482]
[1733166185834,11.1845,223.53,223.43,13.26768215]
[1733166186049,11.1845,223.53,223.44,13.26768215]
[1733166186838,20.0,223.5,223.44,13.26768215]
[1733166187861,20.0,223.5,223.49,13.26768215]
[1733166188156,15.0348,223.61,223.5,4.482]
[1733166188351,15.0348,223.61,223.54,13.26768215]
[1733166188664,15.0348,223.61,223.53,13.26768215]
[1733166188859,15.0348,223.61,223.54,13.26768215]
[1733166189158,26.215,223.61,223.54,13.26768215]
[1733166189358,11.1802,223.61,223.55,13.26768215]
[1733166190363,0.12549,223.65,223.55,13.26768215]
[1733166190659,23.902374,223.65,223.58,13.26768215]
[1733166190963,26.2124,223.66,223.59,13.26768215]
[1733166191360,26.2124,223.66,223.58,13.26768215]
[1733166191730,26.2124,223.66,223.59,13.26768215]
[1733166192263,20.0,223.63,223.57,13.26768215]
[1733166192756,20.0,223.63,223.58,13.26768215]
[1733166192961,20.0,223.63,223.59,13.26768215]
[1733166193458,20.0,223.63,223.58,13.26768215]
[1733166193655,20.0,223.63,223.57,13.26768215]
[1733166193860,0.09758015,223.59,223.53,0.12549]
[1733166194041,0.09758015,223.59,223.54,13.26768215]
[1733166194651,0.09758015,223.59,223.55,13.26768215]
[1733166194959,0.09758015,223.59,223.52,0.12549]
[1733166195259,0.09758015,223.59,223.55,13.26768215]
[1733166195551,0.09758015,223.59,223.53,13.26768215]
[1733166195959,0.09758015,223.59,223.52,13.26768215]
[1733166196849,0.09758015,223.59,223.53,13.26768215]
[1733166197573,0.09758015,223.59,223.55,13.26768215]
[1733166198071,0.09758015,223.59,223.58,13.26768215]
[1733166200171,0.09758015,223.59,223.57,13.26768215]
[1733166200761,0.09758015,223.59,223.53,0.89222643]
[1733166200762,0.09758015,223.59,223.58,13.26768215]
[1733166201267,0.09758015,223.59,223.58,4.482]
[1733166202243,0.09758015,223.59,223.56,4.482]
[1733166202773,20.09758015,223.59,223.56,4.482]
[1733166202947,11.27878015,223.59,223.56,4.482]
[1733166203149,11.27878015,223.59,223.53,4.482]
[1733166203773,11.27878015,223.59,223.53,17.74968215]
[1733166204071,11.27878015,223.59,223.55,4.482]
[1733166204966,11.27878015,223.59,223.54,4.482]
[1733166206171,11.27878015,223.59,223.53,4.482]
[1733166206377,11.27878015,223.59,223.51,4.482]
[1733166206546,20.0,223.56,223.51,4.482]
[1733166206939,20.0,223.56,223.5,4.482]
[1733166207377,20.0,223.56,223.5,17.74968215]
[1733166207873,20.0,223.56,223.51,17.74968215]
[1733166208168,20.0,223.56,223.51,4.482]
[1733166209551,11.1827,223.56,223.5,4.482]
[1733166210570,11.1827,223.56,223.48,4.482]
[1733166211077,20.0,223.53,223.48,4.482]
[1733166211581,31.1846,223.53,223.47,4.482]
[1733166212272,31.1846,223.53,223.44,13.26768215]
[1733166212478,31.1846,223.53,223.45,4.482]
[1733166212651,31.1846,223.53,223.44,13.26768215]
[1733166212652,31.1846,223.53,223.44,4.482]
[1733166213951,0.09562707,223.45,223.44,4.482]
[1733166214259,0.08368487,223.46,223.44,4.482]
[1733166214454,0.08368487,223.46,223.45,4.482]
[1733166214660,0.08368487,223.46,223.45,17.74968215]
[1733166220276,0.05220955,223.5,223.45,17.74968215]
[1733166220581,0.05220955,223.5,223.47,4.482]
[1733166221161,0.05220955,223.5,223.49,17.74968215]
[1733166221563,0.05220955,223.5,223.49,4.482]
[1733166222172,0.03351848,223.51,223.49,4.482]
[1733166223481,0.03351848,223.51,223.5,4.482]